fUST/lending_fUST_20240704
["ID","MTS","AMOUNT","RATE_DAILY","PERIOD"]
[331064459,1720056647115,-500.0,0.00014389,2]
[331064461,1720056647123,-500.0,0.00014389,2]
[331064463,1720056647133,-500.0,0.00014389,2]
[331064465,1720056647142,-352.32476028,0.00014389,2]
[331064480,1720056738091,150.83408251,0.00019327,30]
[331064481,1720056760622,-156.1,0.000234,31]
[331064482,1720056760644,-683.20222464,0.000236,30]
[331064485,1720056981321,212.84379279,9.999e-05,2]
[331064496,1720057137565,238.2,0.00024,60]
[331064504,1720057436655,155.05882024,9.999e-05,2]
[331064512,1720057626121,-2137.03169252,0.00013136,2]
[331064513,1720057633128,-405.8,0.00013136,2]
[331064514,1720057638110,-6452.28517588,0.00013136,2]
[331064515,1720057638131,-234.5937281,0.00013144,2]
[331064516,1720057638151,-190.88240731,0.00013292,2]
[331064517,1720057638170,-1375.14482786,0.00014048,2]
[331064518,1720057639109,-311.53580844,0.00014048,2]
[331064519,1720057639129,-702.55202964,0.0001417,2]
[331064520,1720057641154,-167.81561064,0.0001417,2]
[331064521,1720057641173,-153.0,0.000142,2]
[331064522,1720057641194,-153.0,0.000142,2]
[331064523,1720057641213,-633.35932982,0.00014279,2]
[331064524,1720057642175,-150.99909156,0.00014279,2]
[331064525,1720057766146,-223.00977677,0.0001427,2]
[331064526,1720057809983,-248.2903612,0.00013699,2]
[331064527,1720057810014,-461.98846401,0.0001427,2]
[331064528,1720057810048,-15.65499433,0.0001427,2]
[331064529,1720057810077,-159.84010997,0.0001427,2]
[331064634,1720057839750,-580.94591285,0.0001427,2]
[331064637,1720057839761,-214.92010827,0.0001427,2]
[331064640,1720057839771,-389.77397888,0.00014271,2]
[331064681,1720057840394,-351.01204394,0.00014271,2]
[331064684,1720057840404,-740.78602282,0.00014271,2]
[331064686,1720057840415,-740.78602282,0.00014272,2]
[331064688,1720057840425,-740.78602282,0.00014272,2]
[331064690,1720057840434,-1215.64157862,0.00014279,2]
[331064691,1720057840445,-153.0,0.000143,2]
[331064693,1720057840454,-153.0,0.000143,2]
[331064695,1720057840464,-153.0,0.000143,2]
[331064697,1720057840476,-153.0,0.000143,2]
[331064699,1720057840487,-153.0,0.000143,2]
[331064701,1720057840496,-153.0,0.000143,2]
[331064703,1720057840505,-153.0,0.000143,2]
[331064704,1720057840515,-206.0836831,0.000143,2]
[331064706,1720057840527,-154.3473172,0.000143,2]
[331064708,1720057840537,-154.3095238,0.000143,2]
[331064710,1720057840546,-153.0,0.000143,2]
[331064711,1720057840556,-208.8202166,0.000143,2]
[331064713,1720057840566,-153.4783646,0.000143,2]
[331064715,1720057840575,-153.0,0.000143,2]
[331064717,1720057840584,-153.0,0.000143,2]
[331064719,1720057840593,-206.0836831,0.000143,2]
[331064721,1720057840603,-153.0,0.000143,2]
[331064723,1720057840614,-153.0,0.000143,2]
[331064724,1720057840624,-153.0,0.000143,2]
[331064726,1720057840634,-296.617793,0.000143,2]
[331064729,1720057840643,-153.8544036,0.000143,2]
[331064732,1720057840653,-153.0,0.000143,2]
[331064734,1720057840662,-206.0836831,0.000143,2]
[331064737,1720057840672,-153.0,0.000143,2]
[331064740,1720057840681,-369.46397388,0.00014369,2]
[331064743,1720057840691,-492.66799158,0.00014369,2]
[331064745,1720057840700,-427.715612,0.00014369,2]
[331064748,1720057840710,-165.91514268,0.00014369,2]
[331064749,1720057840719,-258.15166692,0.00014369,2]
[331064752,1720057840736,-255.78642875,0.00014369,2]
[331064755,1720057840748,-270.13098871,0.00014369,2]
[331064757,1720057840758,-500.0,0.00014369,2]
[331064758,1720057840767,-500.0,0.00014369,2]
[331064760,1720057840780,-1689.47,0.00014369,2]
[331064762,1720057840789,-500.0,0.00014369,2]
[331064764,1720057840800,-3120.57773391,0.00014369,2]
[331064766,1720057840817,-7247.66226609,0.00014369,2]
[331064768,1720057840827,-1110.19,0.00014369,2]
[331064770,1720057840836,-2414.54029944,0.0001437,2]
[331064772,1720057840845,-19209.33984661,0.0001437,2]
[331064774,1720057840862,-3495.27564017,0.0001437,2]
[331064776,1720057840874,-988.47378084,0.0001437,2]
[331064778,1720057840886,-557.41523625,0.0001437,2]
[331064780,1720057840897,-784.2043442,0.0001437,2]
[331064782,1720057840909,-1032.89714347,0.0001437,2]
[331064917,1720057845330,-500.0,0.00014369,2]
[331064922,1720057845340,-55808.03473126,0.0001437,2]
[331064927,1720057845349,-24921.04731934,0.00014379,2]
[331064931,1720057845359,-500.0,0.00014379,2]
[331064934,1720057845368,-500.0,0.00014379,2]
[331064939,1720057845378,-500.0,0.00014379,2]
[331064944,1720057845387,-500.0,0.00014379,2]
[331064947,1720057845397,-500.0,0.00014379,2]
[331064951,1720057845406,-500.0,0.00014379,2]
[331064952,1720057845416,-500.0,0.00014379,2]
[331064953,1720057845425,-434.32637408,0.00014379,2]
[331064954,1720057845434,-500.0,0.00014379,2]
[331064955,1720057845443,-2034.61,0.00014379,2]
[331064956,1720057845453,-500.0,0.00014379,2]
[331064957,1720057845463,-500.0,0.00014379,2]
[331064958,1720057845472,-500.0,0.00014379,2]
[331064959,1720057845484,-158.099874,0.00014379,2]
[331064960,1720057845494,-156.81756,0.00014379,2]
[331064961,1720057845503,-505.76612072,0.00014379,2]
[331064962,1720057845514,-503.1529494,0.00014379,2]
[331064963,1720057845523,-639.81,0.00014379,2]
[331064964,1720057845533,-500.0,0.00014379,2]
[331064965,1720057845542,-151.0,0.00014379,2]
[331064966,1720057845551,-151.0,0.00014379,2]
[331064967,1720057845561,-500.0,0.00014379,2]
[331064968,1720057845570,-500.0,0.00014379,2]
[331064969,1720057845579,-500.0,0.00014379,2]
[331064970,1720057845588,-511.53246164,0.00014379,2]
[331064971,1720057845598,-154.047542,0.00014379,2]
[331064972,1720057845607,-500.0,0.00014379,2]
[331064973,1720057845616,-500.0,0.00014379,2]
[331064974,1720057845626,-1671.8,0.00014379,2]
[331064976,1720057845635,-500.0,0.00014379,2]
[331064977,1720057845645,-500.0,0.00014379,2]
[331064979,1720057845655,-500.0,0.00014379,2]
[331064981,1720057845664,-1822.62,0.00014379,2]
[331064983,1720057845673,-500.0,0.00014379,2]
[331064985,1720057845683,-500.0,0.00014379,2]
[331064987,1720057845692,-151.0,0.00014379,2]
[331064989,1720057845702,-151.0,0.00014379,2]
[331064991,1720057845711,-500.0,0.00014379,2]
[331064993,1720057845721,-500.0,0.00014379,2]
[331064995,1720057845735,-1035.87,0.00014379,2]
[331064996,1720057845745,-500.0,0.00014379,2]
[331064998,1720057845756,-165.89885266,0.00014379,2]
[331065000,1720057845766,-151.0954,0.00014379,2]
[331065002,1720057845776,-151.0954,0.00014379,2]
[331065004,1720057845786,-151.0,0.00014379,2]
[331065006,1720057845797,-151.0,0.00014379,2]
[331065008,1720057845807,-151.0954,0.00014379,2]
[331065010,1720057845821,-151.0954,0.00014379,2]
[331065012,1720057845830,-500.0,0.00014379,2]
[331065014,1720057845840,-500.0,0.00014379,2]
[331065016,1720057845850,-500.0,0.00014379,2]
[331065018,1720057845860,-500.0,0.00014379,2]
[331065020,1720057845870,-500.0,0.00014379,2]
[331065022,1720057845879,-712.51,0.00014379,2]
[331065024,1720057845889,-500.0,0.00014379,2]
[331065026,1720057845899,-500.0,0.00014379,2]
[331065028,1720057845909,-500.0,0.00014379,2]
[331065030,1720057845918,-153.131353,0.00014379,2]
[331065032,1720057845927,-205.727671,0.00014379,2]
[331065034,1720057845937,-205.727671,0.00014379,2]
[331065036,1720057845946,-205.727671,0.00014379,2]
[331065038,1720057845956,-205.727671,0.00014379,2]
[331065040,1720057845965,-500.0,0.00014379,2]
[331065042,1720057845975,-3720.56,0.00014379,2]
[331065044,1720057845994,-503.09234305,0.00014379,2]
[331065046,1720057846003,-503.46100923,0.00014379,2]
[331065048,1720057846016,-500.0,0.00014379,2]
[331065050,1720057846025,-504.36516644,0.00014379,2]
[331065052,1720057846035,-504.52614902,0.00014379,2]
[331065054,1720057846045,-500.0,0.00014379,2]
[331065056,1720057846055,-500.0,0.00014379,2]
[331065058,1720057846065,-151.0,0.00014379,2]
[331065060,1720057846075,-151.0,0.00014379,2]
[331065062,1720057846084,-500.0,0.00014379,2]
[331065064,1720057846095,-501.00505811,0.00014379,2]
[331065066,1720057846104,-500.0,0.00014379,2]
[331065068,1720057846113,-505.63136882,0.00014379,2]
[331065070,1720057846123,-500.0,0.00014379,2]
[331065072,1720057846132,-500.79087464,0.00014379,2]
[331065074,1720057846141,-279.890388,0.00014379,2]
[331065076,1720057846150,-279.890388,0.00014379,2]
[331065078,1720057846159,-279.890388,0.00014379,2]
[331065080,1720057846168,-279.890388,0.00014379,2]
[331065082,1720057846178,-513.99361202,0.00014379,2]
[331065084,1720057846187,-151.0,0.00014379,2]
[331065086,1720057846196,-151.0,0.00014379,2]
[331065088,1720057846206,-500.0,0.00014379,2]
[331065090,1720057846216,-500.0,0.00014379,2]
[331065092,1720057846225,-500.0,0.00014379,2]
[331065094,1720057846245,-617.08938442,0.00014379,2]
[331065096,1720057846254,-1227.57,0.00014379,2]
[331065097,1720057846263,-190.74796545,0.00014379,2]
[331065099,1720057846272,-502.67950524,0.00014379,2]
[331065101,1720057846282,-756.63,0.00014379,2]
[331065103,1720057846291,-500.0,0.00014379,2]
[331065105,1720057846300,-500.0,0.00014379,2]
[331065108,1720057846310,-500.0,0.00014379,2]
[331065110,1720057846319,-500.0,0.00014379,2]
[331065113,1720057846328,-151.0,0.00014379,2]
[331065115,1720057846337,-151.0,0.00014379,2]
[331065117,1720057846346,-151.0,0.00014379,2]
[331065119,1720057846355,-500.0,0.00014379,2]
[331065121,1720057846365,-151.0,0.00014379,2]
[331065123,1720057846374,-3754.6,0.00014379,2]
[331065125,1720057846383,-500.0,0.00014379,2]
[331065127,1720057846393,-151.0,0.00014379,2]
[331065129,1720057846403,-151.0,0.00014379,2]
[331065131,1720057846412,-501.64342118,0.00014379,2]
[331065133,1720057846421,-500.0,0.00014379,2]
[331065135,1720057846431,-500.0,0.00014379,2]
[331065137,1720057846440,-500.0,0.00014379,2]
[331065139,1720057846449,-500.0,0.00014379,2]
[331065141,1720057846458,-500.0,0.00014379,2]
[331065143,1720057846467,-89866.77075956,0.00014379,2]
[331065145,1720057846486,-999.9933705,0.00014379,2]
[331065328,1720057848279,-154760.15803794,0.00014379,2]
[331065330,1720057848288,-501.51636752,0.0001438,2]
[331065332,1720057848298,-503.82483681,0.0001438,2]
[331065334,1720057848307,-807.44,0.0001438,2]
[331065337,1720057848316,-500.0,0.0001438,2]
[331065339,1720057848325,-504.29926179,0.0001438,2]
[331065341,1720057848334,-503.67622111,0.0001438,2]
[331065343,1720057848343,-500.0,0.0001438,2]
[331065344,1720057848353,-500.0,0.0001438,2]
[331065347,1720057848363,-526.39,0.0001438,2]
[331065348,1720057848372,-1375.64,0.0001438,2]
[331065350,1720057848381,-501.42088914,0.0001438,2]
[331065352,1720057848390,-540.51347967,0.0001438,2]
[331065354,1720057848399,-500.0,0.0001438,2]
[331065356,1720057848408,-505.79478751,0.0001438,2]
[331065358,1720057848417,-500.0,0.0001438,2]
[331065360,1720057848427,-500.0,0.0001438,2]
[331065363,1720057848445,-274.32458299,0.0001438,2]
[331065366,1720057848456,-799.35,0.0001438,2]
[331065367,1720057848467,-1203.85,0.0001438,2]
[331065370,1720057848480,-464.26548492,0.0001438,2]
[331065371,1720057848491,-500.0,0.0001438,2]
[331065373,1720057848501,-500.0,0.0001438,2]
[331065375,1720057848510,-500.0,0.0001438,2]
[331065377,1720057848520,-500.0,0.0001438,2]
[331065379,1720057848530,-500.0,0.0001438,2]
[331065381,1720057848539,-618.35,0.0001438,2]
[331065383,1720057848549,-500.0,0.0001438,2]
[331065385,1720057848558,-520.01352078,0.0001438,2]
[331065387,1720057848568,-500.0,0.0001438,2]
[331065389,1720057848578,-500.0,0.0001438,2]
[331065391,1720057848588,-500.0,0.0001438,2]
[331065393,1720057848597,-500.0,0.0001438,2]
[331065395,1720057848607,-500.0,0.0001438,2]
[331065397,1720057848616,-500.0,0.0001438,2]
[331065399,1720057848626,-500.0,0.0001438,2]
[331065401,1720057848636,-500.0,0.0001438,2]
[331065403,1720057848646,-500.0,0.0001438,2]
[331065405,1720057848655,-500.0,0.0001438,2]
[331065407,1720057848665,-500.0,0.0001438,2]
[331065409,1720057848674,-500.0,0.0001438,2]
[331065411,1720057848684,-500.0,0.0001438,2]
[331065413,1720057848693,-500.0,0.0001438,2]
[331065415,1720057848703,-500.0,0.0001438,2]
[331065417,1720057848712,-505.50900849,0.0001438,2]
[331065419,1720057848721,-500.0,0.0001438,2]
[331065420,1720057848730,-500.0,0.0001438,2]
[331065422,1720057848743,-8033.24,0.0001438,2]
[331065424,1720057848753,-500.0,0.0001438,2]
[331065426,1720057848761,-500.0,0.0001438,2]
[331065428,1720057848771,-193.05125693,0.0001438,2]
[331065430,1720057848784,-500.0,0.0001438,2]
[331065432,1720057848795,-500.0,0.0001438,2]
[331065434,1720057848809,-503.73654093,0.0001438,2]
[331065436,1720057848820,-502.31490436,0.0001438,2]
[331065438,1720057848829,-151.0,0.0001438,2]
[331065440,1720057848839,-500.0,0.0001438,2]
[331065442,1720057848848,-151.0,0.0001438,2]
[331065444,1720057848860,-151.0,0.0001438,2]
[331065447,1720057848871,-500.0,0.0001438,2]
[331065448,1720057848880,-500.0,0.0001438,2]
[331065451,1720057848890,-500.0,0.0001438,2]
[331065453,1720057848899,-706.38,0.0001438,2]
[331065454,1720057848910,-500.0,0.0001438,2]
[331065457,1720057848920,-451.19898277,0.0001438,2]
[331065459,1720057848929,-611.75718231,0.0001438,2]
[331065461,1720057848938,-500.0,0.0001438,2]
[331065463,1720057848948,-151.0,0.0001438,2]
[331065465,1720057848957,-151.0,0.0001438,2]
[331065466,1720057848966,-151.0,0.0001438,2]
[331065467,1720057848975,-151.0,0.0001438,2]
[331065468,1720057848990,-502.17873915,0.0001438,2]
[331065469,1720057849000,-151.0954,0.0001438,2]
[331065470,1720057849011,-151.0954,0.0001438,2]
[331065471,1720057849020,-151.0954,0.0001438,2]
[331065472,1720057849029,-151.0954,0.0001438,2]
[331065473,1720057849039,-500.0,0.0001438,2]
[331065474,1720057849048,-151.0,0.0001438,2]
[331065475,1720057849057,-151.0,0.0001438,2]
[331065476,1720057849066,-162.352123,0.0001438,2]
[331065477,1720057849076,-151.0954,0.0001438,2]
[331065478,1720057849085,-151.0954,0.0001438,2]
[331065479,1720057849095,-151.0954,0.0001438,2]
[331065480,1720057849104,-151.0954,0.0001438,2]
[331065481,1720057849113,-500.0,0.0001438,2]
[331065482,1720057849123,-1953.54,0.0001438,2]
[331065483,1720057849132,-898.13,0.0001438,2]
[331065484,1720057849141,-500.0,0.0001438,2]
[331065485,1720057849151,-502.00156353,0.0001438,2]
[331065486,1720057849160,-550.83221088,0.0001438,2]
[331065487,1720057849170,-607.91,0.0001438,2]
[331065489,1720057849179,-424.24068936,0.0001438,2]
[331065491,1720057849188,-500.0,0.0001438,2]
[331065493,1720057849198,-205.727671,0.0001438,2]
[331065495,1720057849207,-205.727671,0.0001438,2]
[331065497,1720057849216,-205.727671,0.0001438,2]
[331065499,1720057849225,-205.727671,0.0001438,2]
[331065501,1720057849241,-500.0,0.0001438,2]
[331065503,1720057849250,-205.727671,0.0001438,2]
[331065505,1720057849259,-205.727671,0.0001438,2]
[331065507,1720057849268,-205.727671,0.0001438,2]
[331065509,1720057849277,-753.24,0.0001438,2]
[331065511,1720057849286,-205.727671,0.0001438,2]
[331065513,1720057849295,-357.70603781,0.0001438,2]
[331065515,1720057849304,-500.0,0.0001438,2]
[331065517,1720057849313,-500.0,0.0001438,2]
[331065519,1720057849323,-151.0,0.0001438,2]
[331065521,1720057849331,-151.0,0.0001438,2]
[331065523,1720057849340,-151.0,0.0001438,2]
[331065525,1720057849350,-151.0,0.0001438,2]
[331065527,1720057849359,-176.58256,0.0001438,2]
[331065529,1720057849367,-500.0,0.0001438,2]
[331065531,1720057849376,-646.68584597,0.0001438,2]
[331065533,1720057849386,-500.0,0.0001438,2]
[331065535,1720057849395,-500.0,0.0001438,2]
[331065537,1720057849404,-279.890388,0.0001438,2]
[331065539,1720057849413,-279.890388,0.0001438,2]
[331065541,1720057849423,-279.890388,0.0001438,2]
[331065543,1720057849431,-279.890388,0.0001438,2]
[331065545,1720057849441,-279.890388,0.0001438,2]
[331065547,1720057849450,-500.0,0.0001438,2]
[331065549,1720057849459,-279.890388,0.0001438,2]
[331065551,1720057849469,-279.890388,0.0001438,2]
[331065553,1720057849478,-279.890388,0.0001438,2]
[331065555,1720057849491,-279.890388,0.0001438,2]
[331065557,1720057849500,-279.890388,0.0001438,2]
[331065559,1720057849509,-500.0,0.0001438,2]
[331065561,1720057849518,-4484.56,0.0001438,2]
[331065563,1720057849527,-4484.56,0.0001438,2]
[331065565,1720057849536,-151.0,0.0001438,2]
[331065567,1720057849545,-151.0,0.0001438,2]
[331065569,1720057849554,-151.0,0.0001438,2]
[331065571,1720057849563,-151.0,0.0001438,2]
[331065573,1720057849573,-500.0,0.0001438,2]
[331065575,1720057849582,-151.0,0.0001438,2]
[331065577,1720057849591,-500.0,0.0001438,2]
[331065580,1720057849602,-500.0,0.0001438,2]
[331065582,1720057849611,-500.0,0.0001438,2]
[331065584,1720057849621,-151.0,0.0001438,2]
[331065586,1720057849630,-151.0,0.0001438,2]
[331065588,1720057849640,-151.0,0.0001438,2]
[331065590,1720057849651,-1213.28,0.0001438,2]
[331065591,1720057849659,-151.0,0.0001438,2]
[331065594,1720057849669,-151.0,0.0001438,2]
[331065596,1720057849678,-151.0,0.0001438,2]
[331065598,1720057849687,-151.0,0.0001438,2]
[331065600,1720057849696,-151.0,0.0001438,2]
[331065602,1720057849705,-151.0,0.0001438,2]
[331065604,1720057849714,-151.0,0.0001438,2]
[331065606,1720057849724,-151.0,0.0001438,2]
[331065608,1720057849735,-166.729659,0.0001438,2]
[331065610,1720057849745,-500.0,0.0001438,2]
[331065612,1720057849754,-504.57823144,0.0001438,2]
[331065614,1720057849763,-502.38824736,0.0001438,2]
[331065616,1720057849772,-500.0,0.0001438,2]
[331065627,1720057849891,-501.23035577,0.0001438,2]
[331065629,1720057849901,-81875.6407228,0.0001438,2]
[331065631,1720057849910,-4484.56,0.00014388,2]
[331065633,1720057849919,-4484.56,0.00014388,2]
[331065635,1720057849928,-1349.38224103,0.00014388,2]
[331065636,1720057849942,-3088.47664697,0.00014388,2]
[331065639,1720057850067,-1189.97,0.0001427,2]
[331065640,1720057850078,-1689.03,0.0001427,2]
[331065641,1720057850088,-540.05466382,0.00014369,2]
[331065642,1720057850097,-500.0,0.00014369,2]
[331065643,1720057850107,-500.0,0.00014369,2]
[331065644,1720057850116,-500.0,0.00014369,2]
[331065645,1720057850125,-500.0,0.00014369,2]
[331065646,1720057850135,-500.0,0.00014369,2]
[331065647,1720057850144,-500.0,0.00014369,2]
[331065648,1720057850153,-500.0,0.00014369,2]
[331065649,1720057850163,-500.0,0.00014369,2]
[331065651,1720057850172,-500.0,0.00014369,2]
[331065653,1720057850181,-500.0,0.00014369,2]
[331065655,1720057850191,-46.701112,0.00014388,2]
[331065657,1720057850199,-4484.56,0.00014388,2]
[331065659,1720057850208,-4484.56,0.00014388,2]
[331065661,1720057850218,-4484.56,0.00014388,2]
[331065663,1720057850227,-4484.56,0.00014388,2]
[331065665,1720057850239,-4484.56,0.00014388,2]
[331065667,1720057850248,-2826.41422478,0.00014388,2]
[331066788,1720058193253,179.9274556,9.999e-05,2]
[331066790,1720058218188,155.30566455,9.999e-05,2]
[331066793,1720058263782,532.57060628,9.999e-05,2]
[331066798,1720058306302,282.37484173,9.999e-05,2]
[331066800,1720058755147,-307.48732557,0.0001212,2]
[331066801,1720058761737,19517.92354233,9.999e-05,2]
[331066803,1720058791205,155.1071817,9.999e-05,2]
[331066805,1720058805104,-248.04869346,0.00012119,2]
[331066807,1720058836102,-300.0,0.00012119,2]
[331066808,1720058836123,-300.0,0.00012119,2]
[331066809,1720058836141,-155.0465365,0.0001212,2]
[331066810,1720058836162,-244.25974673,0.0001212,2]
[331066811,1720058838116,-3375.0172426,0.0001212,2]
[331066813,1720058840097,-937.50687397,0.0001212,2]
[331066814,1720058849105,-675.45587935,0.0001212,2]
[331066815,1720058851131,-151.0,0.00013302,2]
[331066816,1720058852109,-269.0,0.00013302,2]
[331066817,1720058852128,-420.0,0.00013331,2]
[331066818,1720058852147,-2142.83646381,0.00013368,2]
[331066821,1720058957103,-88.04104449,0.00013368,2]
[331066822,1720058957131,-13983.80936447,0.00013368,2]
[331066823,1720058962125,-154.83742071,0.00014,2]
[331066824,1720058962146,-89.4897761,0.00014259,2]
[331066825,1720059016824,268.08468,9.999e-05,2]
[331066826,1720059016846,516.62481897,9.999e-05,2]
[331067123,1720059040747,-296.07899012,0.00014259,2]
[331067127,1720059040759,-585.0,0.00014259,2]
[331067128,1720059040772,-158.74603073,0.00014259,2]
[331067130,1720059040782,-1039.82502082,0.00014261,2]
[331067132,1720059040792,-1039.82502082,0.00014264,2]
[331067133,1720059040802,-1039.82502082,0.00014266,2]
[331067135,1720059040812,-1039.82502082,0.00014268,2]
[331067136,1720059040823,-199.06449606,0.00014269,2]
[331067138,1720059040832,-182.0,0.00014347,2]
[331067139,1720059040843,-500.0,0.00014348,2]
[331067141,1720059040853,-231.45199878,0.00014348,2]
[331067142,1720059040862,-500.0,0.00014348,2]
[331067144,1720059040872,-82.21330381,0.00014348,2]
[331067145,1720059040885,-417.78669619,0.00014348,2]
[331067147,1720059040895,-221.4617441,0.00014348,2]
[331067149,1720059040904,-500.0,0.00014348,2]
[331067150,1720059040914,-500.0,0.00014348,2]
[331067152,1720059040924,-500.0,0.00014348,2]
[331067153,1720059040934,-500.0,0.00014348,2]
[331067154,1720059040944,-311.96765432,0.00014348,2]
[331067155,1720059041072,-188.03234568,0.00014348,2]
[331067156,1720059041083,-500.0,0.00014348,2]
[331067157,1720059041093,-500.0,0.00014348,2]
[331067158,1720059041103,-1320.68081764,0.00014349,2]
[331067159,1720059041115,-372.06935881,0.00014349,2]
[331067160,1720059041127,-27263.43501753,0.00014349,2]
[331067162,1720059041139,-11765.0,0.00014349,2]
[331067250,1720059041974,-115754.83423002,0.00014349,2]
[331067252,1720059041984,-25162.00921027,0.00014358,2]
[331067254,1720059041994,-234714.029136,0.00014358,2]
[331067256,1720059042002,-500.0,0.00014358,2]
[331067258,1720059042012,-500.0,0.00014358,2]
[331067260,1720059042022,-1752.48,0.00014358,2]
[331067262,1720059042031,-500.0,0.00014358,2]
[331067264,1720059042040,-10764.98,0.00014358,2]
[331067266,1720059042049,-2268.54,0.00014358,2]
[331067268,1720059042059,-500.0,0.00014358,2]
[331067270,1720059042068,-633.99,0.00014358,2]
[331067272,1720059042077,-504.12271295,0.00014358,2]
[331067274,1720059042093,-169.51366266,0.00014358,2]
[331067276,1720059042103,-1765.87,0.00014358,2]
[331067278,1720059042112,-500.0,0.00014368,2]
[331067280,1720059042121,-500.0,0.00014368,2]
[331067282,1720059042133,-501.80277424,0.00014368,2]
[331067284,1720059042143,-168.76644814,0.00014368,2]
[331067286,1720059042152,-500.19876444,0.00014368,2]
[331067288,1720059042162,-503.94472326,0.00014368,2]
[331067290,1720059042176,-500.0,0.00014368,2]
[331067292,1720059042186,-501.32131095,0.00014368,2]
[331067294,1720059042195,-500.0,0.00014368,2]
[331067296,1720059042204,-500.0,0.00014368,2]
[331067298,1720059042213,-500.0,0.00014368,2]
[331067300,1720059042222,-500.0,0.00014368,2]
[331067302,1720059042231,-500.71557099,0.00014368,2]
[331067304,1720059042240,-250.00491696,0.00014368,2]
[331067306,1720059042249,-500.0,0.00014368,2]
[331067308,1720059042260,-500.0,0.00014368,2]
[331067310,1720059042269,-500.0,0.00014368,2]
[331067312,1720059042278,-503.3462107,0.00014368,2]
[331067314,1720059042287,-528.94433473,0.00014368,2]
[331067316,1720059042297,-500.0,0.00014368,2]
[331067318,1720059042308,-505.83232519,0.00014368,2]
[331067320,1720059042320,-500.0,0.00014368,2]
[331067322,1720059042330,-1033.54,0.00014368,2]
[331067324,1720059042339,-501.83156107,0.00014368,2]
[331067326,1720059042350,-501.22035819,0.00014368,2]
[331067328,1720059042360,-501.93171522,0.00014368,2]
[331067330,1720059042369,-500.0,0.00014368,2]
[331067332,1720059042379,-500.0,0.00014368,2]
[331067334,1720059042390,-570.67475578,0.00014368,2]
[331067335,1720059042398,-503.65043947,0.00014368,2]
[331067336,1720059042407,-500.0,0.00014368,2]
[331067337,1720059042416,-500.0,0.00014368,2]
[331067338,1720059042425,-502.17600928,0.00014368,2]
[331067339,1720059042434,-500.0,0.00014368,2]
[331067340,1720059042443,-500.0,0.00014368,2]
[331067341,1720059042452,-500.0,0.00014368,2]
[331067342,1720059042461,-500.0,0.00014368,2]
[331067343,1720059042470,-500.0,0.00014368,2]
[331067344,1720059042479,-216.45807005,0.00014368,2]
[331067345,1720059042488,-500.0,0.00014368,2]
[331067346,1720059042496,-500.0,0.00014368,2]
[331067347,1720059042505,-501.59436244,0.00014368,2]
[331067348,1720059042514,-500.0,0.00014368,2]
[331067349,1720059042523,-525.29,0.00014368,2]
[331067350,1720059042532,-285.14392671,0.00014368,2]
[331067351,1720059042541,-502.49537145,0.00014368,2]
[331067352,1720059042550,-517.72646395,0.00014368,2]
[331067354,1720059042561,-580.83562949,0.00014368,2]
[331067356,1720059042571,-500.0,0.00014368,2]
[331067358,1720059042579,-1521.56,0.00014368,2]
[331067360,1720059042588,-502.62168014,0.00014368,2]
[331067362,1720059042597,-503.02909292,0.00014368,2]
[331067364,1720059042607,-179.00784097,0.00014368,2]
[331067366,1720059042616,-500.93249241,0.00014368,2]